[Event "Czech Open GM 2020"]
[Site "Pardubice"]
[Date "2020.09.25"]
[Round "5.17"]
[White "Balinski, Damian"]
[Black "Seger, Ruediger"]
[Result "1/2-1/2"]
[ECO "D80"]
[WhiteElo "2158"]
[BlackElo "2312"]
[Annotator "NA"]
[PlyCount "46"]
[EventDate "2020.09.21"]
[EventCountry "CZE"]
[SourceTitle "playchess.com"]
[Source "ChessBase"]
[SourceQuality "1"]
[TimeControl "40/5400+30:1800+30"]

1. d4 Nf6 2. c4 g6 3. Nc3 d5 {[%emt 18:36:45]} 4. e3 Bg7 {[%emt 0:00:14]} 5. Qb3 e6 6. Qa3 b6 {[%emt 30:15:33]} 7. Nf3 Bb7 {[%emt 0:07:37]} 8. cxd5 exd5 {[%emt 0:07:01]} 9. Bd2 a6 {[%emt 0:16:40]} 10. Ne5 Nbd7 {[%emt 0:20:00]} 11. Nxd7 Qxd7 {[%emt 0:01:30]} 12. Rc1 Bf8 {[%emt 0:13:38]} 13. Qa4 Bd6 {[%emt 0:21:31]} 14. Be2 Qxa4 {[%emt 0:09:45]} 15. Nxa4 {[%emt 0:00:20]} Ne4 16. a3 {[%emt 0:04:17]} Kd7 {[%emt 0:10:23]} 17. Bb4 {[%emt 0:00:48]} Bc6 {[%emt 0:16:19]} 18. Bxd6 {[%emt 0:00:28]} Kxd6 {[%emt 0:00:08]} 19. Nc3 {[%emt 0:00:22]} Rhe8 {[%emt 0:00:53]} 20. Nxe4+ {[%emt 0:02:38]} Rxe4 {[%emt 0:00:16]} 21. Bf3 {[%emt 0:04:01]} Re7 {[%emt 0:01:39]} 22. O-O {[%emt 0:00:52]} Bb7 {[%emt 0:00:38]} 23. Rfd1 {[%emt 0:01:15]} f5 {[%emt 0:01:34]} 1/2-1/2

[Event "Czech Open GM 2020"]
[Site "Pardubice"]
[Date "2020.09.25"]
[Round "5.18"]
[White "Wahlund, Max"]
[Black "Bulockin, Martin"]
[Result "0-1"]
[ECO "A37"]
[WhiteElo "2153"]
[BlackElo "2297"]
[Annotator "NA"]
[PlyCount "106"]
[EventDate "2020.09.21"]
[EventCountry "CZE"]
[SourceTitle "playchess.com"]
[Source "ChessBase"]
[SourceQuality "1"]
[TimeControl "40/5400+30:1800+30"]

1. Nf3 {[%emt 0:05:50]} c5 {[%emt 0:00:29]} 2. c4 {[%emt 0:00:05]} Nc6 {[%emt 0:00:09]} 3. Nc3 {[%emt 0:00:32]} g6 {[%emt 0:00:15]} 4. g3 {[%emt 0:00:52]} Bg7 {[%emt 0:00:07]} 5. Bg2 {[%emt 0:00:04]} e5 {[%emt 0:00:06]} 6. O-O {[%emt 0:00:07]} d6 {[%emt 0:00:05]} 7. a3 {[%emt 0:00:45]} Nge7 {[%emt 0:00:55]} 8. Rb1 {[%emt 0:00:25]} a5 {[%emt 0:00:06]} 9. d3 {[%emt 0:02:33]} O-O {[%emt 0:01:28]} 10. Ne1 {[%emt 0:01:44]} Be6 {[%emt 0:00:10]} 11. Bg5 {[%emt 0:00:34]} f6 {[%emt 0:05:41]} 12. Be3 {[%emt 0:00:17]} Rb8 {[%emt 0:04:56]} 13. Nc2 {[%emt 0:02:42]} Qd7 {[%emt 0:05:32]} 14. b4 {[%emt 0:04:41]} axb4 {[%emt 0:05:16]} 15. axb4 {[%emt 0:00:04]} b6 {[%emt 0:01:02]} 16. Re1 {[%emt 0:21:26]} f5 {[%emt 0:10:46]} 17. Bg5 {[%emt 0:02:05]} f4 {[%emt 0:06:11]} 18. Bxe7 {[%emt 0:00:38]} Nxe7 {[%emt 0:00:16]} 19. Ne4 {[%emt 0:01:57]} Kh8 {[%emt 0:06:47]} 20. Ra1 {[%emt 0:02:41]} cxb4 {[%emt 0:05:56]} 21. Nxb4 {[%emt 0:00:42]} d5 {[%emt 0:00:41]} 22. cxd5 {[%emt 0:06:57]} Nxd5 {[%emt 0:00:03]} 23. Nxd5 {[%emt 0:00:07]} Bxd5 {[%emt 0:00:08]} 24. Qa4 {[%emt 0:00:58]} Bc6 {[%emt 0:03:11]} 25. Qb4 {[%emt 0:00:28]} fxg3 {[%emt 0:02:02]} 26. fxg3 {[%emt 0:03:43]} Bh6 {[%emt 0:01:52]} 27. Rf1 {[%emt 0:00:25]} Be3+ {[%emt 0:00:49]} 28. Kh1 {[%emt 0:00:02]} Kg7 {[%emt 0:01:58]} 29. Qd6 {[%emt 0:02:43]} Qxd6 {[%emt 0:03:09]} 30. Nxd6 {[%emt 0:00:11]} Rxf1+ {[%emt 0:03:38]} 31. Rxf1 {[%emt 0:00:02]} Bxg2+ {[%emt 0:06:38]} 32. Kxg2 {[%emt 0:00:02]} b5 {[%emt 0:00:25]} 33. Rf7+ {[%emt 0:05:31]} Kg8 {[%emt 0:02:18]} 34. Rb7 {[%emt 0:00:15]} Rxb7 {[%emt 0:00:49]} 35. Nxb7 {[%emt 0:00:03]} Bb6 {[%emt 0:02:08]} 36. Nd6 {[%emt 0:00:08]} b4 {[%emt 0:00:05]} 37. Nc4 {[%emt 0:00:07]} Bd4 {[%emt 0:06:42]} 38. e3 {[%emt 0:04:53]} Bc3 {[%emt 0:00:54]} 39. Na5 {[%emt 0:00:14]} e4 {[%emt 0:02:54]} 40. dxe4 Kf7 {[%emt 0:00:43]} 41. Kf3 Ke6 {[%emt 0:02:08]} 42. Kf4 Kd6 {[%emt 0:03:17]} 43. h4 Be5+ {[%emt 0:06:22]} 44. Kg5 Bxg3 {[%emt 0:13:51]} 45. h5 gxh5 {[%emt 0:01:54]} 46. Kxh5 Kc5 {[%emt 0:03:03]} 47. Kg4 Bc7 {[%emt 0:16:43]} 48. Nb3+ Kc4 {[%emt 0:00:14]} 49. Nd4 Bb6 {[%emt 0:03:31]} 50. Nf3 Kc3 {[%emt 0:06:20]} 51. e5 {[%emt 0:02:02]} b3 {[%emt 0:00:29]} 52. e6 {[%emt 0:00:14]} Bc5 {[%emt 0:00:12]} 53. Nd4 {[%emt 0:00:30]} b2 {[%emt 0:00:11]} 0-1

[Event "Czech Open GM 2020"]
[Site "Pardubice"]
[Date "2020.09.25"]
[Round "5.20"]
[White "Kueppers, Timo"]
[Black "Pacl, Vaclav"]
[Result "1/2-1/2"]
[ECO "D32"]
[WhiteElo "2277"]
[BlackElo "2007"]
[Annotator "NA"]
[PlyCount "88"]
[EventDate "2020.09.21"]
[EventCountry "CZE"]
[SourceTitle "playchess.com"]
[Source "ChessBase"]
[SourceQuality "1"]
[TimeControl "40/5400+30:1800+30"]

1. Nf3 {[%emt 0:00:00]} d5 {[%emt 0:01:15]} 2. d4 {[%emt 0:01:52]} e6 {[%emt 0:03:00]} 3. c4 {[%emt 0:01:03]} c5 {[%emt 0:00:42]} 4. cxd5 {[%emt 0:00:19]} exd5 {[%emt 0:00:08]} 5. Nc3 {[%emt 0:00:17]} Nc6 {[%emt 0:00:08]} 6. dxc5 {[%emt 0:00:39]} d4 {[%emt 0:00:07]} 7. Na4 {[%emt 0:00:08]} Bxc5 {[%emt 0:00:07]} 8. Nxc5 {[%emt 0:00:05]} Qa5+ {[%emt 0:00:06]} 9. Qd2 {[%emt 0:00:03]} Qxc5 {[%emt 0:00:07]} 10. a3 {[%emt 0:00:04]} a5 {[%emt 0:17:27]} 11. b4 {[%emt 0:02:07]} Qb6 {[%emt 0:10:12]} 12. b5 {[%emt 0:00:10]} Qxb5 {[%emt 0:00:28]} 13. Nxd4 {[%emt 0:15:43]} Nxd4 {[%emt 0:01:02]} 14. Qxd4 {[%emt 0:00:06]} Nf6 {[%emt 0:00:36]} 15. e4 {[%emt 0:03:33]} Qc6 {[%emt 0:00:18]} 16. Qe5+ {[%emt 0:07:08]} Kf8 {[%emt 0:04:47]} 17. Bd3 {[%emt 0:07:08]} Be6 {[%emt 0:00:23]} 18. Be3 {[%emt 0:03:43]} Ng4 {[%emt 0:08:58]} 19. Qc5+ {[%emt 0:01:27]} Qxc5 {[%emt 0:00:14]} 20. Bxc5+ {[%emt 0:00:05]} Kg8 {[%emt 0:00:06]} 21. O-O {[%emt 0:14:44]} Ne5 {[%emt 0:02:43]} 22. Be2 {[%emt 0:02:57]} a4 {[%emt 0:11:49]} 23. Rab1 {[%emt 0:02:13]} Bb3 {[%emt 0:00:08]} 24. f4 {[%emt 0:00:52]} Nc6 {[%emt 0:00:36]} 25. e5 {[%emt 0:05:23]} h6 {[%emt 0:04:26]} 26. Bd3 {[%emt 0:00:48]} g6 {[%emt 0:01:56]} 27. e6 {[%emt 0:00:47]} fxe6 {[%emt 0:11:19]} 28. Bxg6 {[%emt 0:00:12]} Kg7 {[%emt 0:00:13]} 29. Be4 {[%emt 0:02:05]} Rhd8 {[%emt 0:03:22]} 30. Rf3 {[%emt 0:03:03]} Kf7 {[%emt 0:03:30]} 31. Rh3 {[%emt 0:01:15]} Kg7 {[%emt 0:01:04]} 32. Rg3+ {[%emt 0:02:16]} Kf7 {[%emt 0:00:03]} 33. f5 {[%emt 0:03:33]} e5 {[%emt 0:01:31]} 34. Rg6 {[%emt 0:00:56]} Nd4 {[%emt 0:03:26]} 35. Rxh6 {[%emt 0:03:20]} Ne2+ {[%emt 0:00:09]} 36. Kf2 {[%emt 0:06:23]} Nc3 {[%emt 0:00:50]} 37. Re1 {[%emt 0:00:21]} Rd2+ {[%emt 0:00:27]} 38. Ke3 {[%emt 0:01:13]} Nxe4 {[%emt 0:00:20]} 39. Kxe4 {[%emt 0:00:05]} Rxg2 {[%emt 0:02:09]} 40. Rh7+ {[%emt 0:03:58]} Rg7 {[%emt 0:03:08]} 41. Rxg7+ {[%emt 0:31:13]} Kxg7 {[%emt 0:30:02]} 42. Rg1+ {[%emt 0:05:08]} Kf7 {[%emt 0:01:24]} 43. Bd6 {[%emt 0:00:56]} Bc2+ {[%emt 0:02:06]} 44. Ke3 {[%emt 0:01:13]} Kf6 {[%emt 0:01:21]} 1/2-1/2

[Event "Czech Open GM 2020"]
[Site "Pardubice"]
[Date "2020.09.26"]
[Round "6.1"]
[White "Van Foreest, Lucas"]
[Black "Noe, Christopher"]
[Result "1-0"]
[ECO "B47"]
[WhiteElo "2531"]
[BlackElo "2519"]
[Annotator "ChessBase"]
[PlyCount "67"]
[EventDate "2020.09.21"]
[EventCountry "CZE"]
[SourceTitle "playchess.com"]
[Source "ChessBase"]
[SourceQuality "1"]
[TimeControl "40/5400+30:1800+30"]

1. e4 {[%emt 0:00:11]} c5 {[%emt 0:02:47]} 2. Nf3 {[%emt 0:10:07]} e6 {[%emt 0:00:00]} 3. d4 {[%emt 0:00:04]} cxd4 {[%emt 0:00:00]} 4. Nxd4 {[%emt 0:00:03]} Nc6 {[%emt 0:00:00]} 5. Nc3 {[%emt 0:00:04]} Qc7 {[%emt 0:00:00]} 6. Nxc6 {[%emt 0:00:45]} dxc6 {[%emt 0:00:12]} 7. f4 {[%emt 0:00:48]} e5 {[%emt 0:01:09]} 8. f5 {[%emt 0:00:19]} Nf6 {[%emt 0:04:57]} 9. g4 {[%emt 0:07:04]} h6 {[%emt 0:02:42]} 10. Qf3 {[%emt 0:00:55]} Bc5 {[%emt 0:09:55]} 11. Bd2 {[%emt 0:04:53]} Bd7 {[%emt 0:01:58]} 12. Be2 {[%emt 0:04:28]} O-O-O {[%emt 0:03:37]} 13. O-O-O {[%emt 0:01:14]} Bd4 {[%emt 0:08:15]} 14. Bc4 {[%emt 0:01:27]} Be8 {[%emt 0:06:07]} 15. Ne2 {[%emt 0:01:03]} Bc5 {[%emt 0:18:42]} 16. Ng3 {[%emt 0:02:14]} b5 {[%emt 0:05:56]} 17. Be2 {[%emt 0:03:13]} Nd7 {[%emt 0:03:49]} 18. Nh5 {[%emt 0:02:08]} Bf8 {[%emt 0:02:52]} 19. f6 {[%emt 0:01:52]} g6 {[%emt 0:04:36]} 20. Ng7 {[%emt 0:00:08]} Nc5 {[%emt 0:00:36]} 21. b4 {[%emt 0:17:40]} Na4 {[%emt 0:01:04]} 22. Qb3 {[%emt 0:02:31]} a6 {[%emt 0:10:25]} 23. c4 {[%emt 0:04:20]} c5 {[%emt 0:00:06]} 24. Nxe8 {[%emt 0:00:44]} Rxe8 {[%emt 0:00:05]} 25. cxb5 {[%emt 0:00:28]} cxb4+ {[%emt 0:02:36]} 26. Kb1 {[%emt 0:00:06]} Nc5 {[%emt 0:04:07]} 27. Qxb4 {[%emt 0:06:33]} Kb8 {[%emt 0:00:02]} 28. bxa6+ {[%emt 0:00:36]} Ka8 {[%emt 0:01:03]} 29. Qc4 {[%emt 0:00:53]} Rb8+ {[%emt 0:04:29]} 30. Ka1 {[%emt 0:00:15]} Bd6 {[%emt 0:00:06]} 31. Be3 {[%emt 0:04:33]} Rhc8 {[%emt 0:01:54]} 32. Qd5+ {[%emt 0:01:03]} Qc6 {[%emt 0:00:12]} 33. Qxc6+ {[%emt 0:00:51]} Rxc6 {[%emt 0:00:06]} 34. Bc4 {[%emt 0:00:39]} 1-0

[Event "Czech Open GM 2020"]
[Site "Pardubice"]
[Date "2020.09.26"]
[Round "6.2"]
[White "Kevlishvili, Robby"]
[Black "Golubka, Petro"]
[Result "1/2-1/2"]
[ECO "B33"]
[WhiteElo "2478"]
[BlackElo "2488"]
[Annotator "ChessBase"]
[PlyCount "117"]
[EventDate "2020.09.21"]
[EventCountry "CZE"]
[SourceTitle "playchess.com"]
[Source "ChessBase"]
[SourceQuality "1"]
[TimeControl "40/5400+30:1800+30"]

1. e4 {[%emt 0:11:26]} c5 {[%emt 0:00:00]} 2. Nf3 {[%emt 0:00:30]} Nc6 {[%emt 0:00:00]} 3. d4 {[%emt 0:00:18]} cxd4 {[%emt 0:00:00]} 4. Nxd4 {[%emt 0:00:00]} Nf6 {[%emt 0:00:00]} 5. Nc3 {[%emt 0:00:00]} e5 {[%emt 0:00:00]} 6. Ndb5 {[%emt 0:00:19]} d6 {[%emt 0:00:01]} 7. Bg5 {[%emt 0:00:40]} a6 {[%emt 0:00:07]} 8. Na3 {[%emt 0:00:04]} b5 {[%emt 0:00:11]} 9. Nd5 {[%emt 0:00:09]} Be7 {[%emt 0:00:06]} 10. Bxf6 {[%emt 0:00:07]} Bxf6 {[%emt 0:00:02]} 11. c3 {[%emt 0:00:45]} O-O {[%emt 0:00:06]} 12. Nc2 {[%emt 0:00:22]} Bg5 {[%emt 0:00:52]} 13. a4 {[%emt 0:00:59]} bxa4 {[%emt 0:00:04]} 14. Rxa4 {[%emt 0:00:08]} a5 {[%emt 0:00:14]} 15. Bc4 {[%emt 0:01:35]} Rb8 {[%emt 0:00:28]} 16. b3 {[%emt 0:02:17]} Kh8 {[%emt 0:02:31]} 17. h4 {[%emt 0:07:49]} Bh6 {[%emt 0:00:30]} 18. Nce3 {[%emt 0:00:21]} Bxe3 {[%emt 0:03:08]} 19. Nxe3 {[%emt 0:00:17]} Ne7 {[%emt 0:00:57]} 20. O-O {[%emt 0:08:07]} f5 {[%emt 0:03:25]} 21. exf5 {[%emt 0:01:53]} Nxf5 {[%emt 0:02:35]} 22. Nxf5 {[%emt 0:00:59]} Bxf5 {[%emt 0:00:34]} 23. Qd5 {[%emt 0:15:30]} Bg6 {[%emt 0:06:44]} 24. g3 {[%emt 0:11:35]} Bf7 {[%emt 0:05:02]} 25. Qxa5 {[%emt 0:00:41]} d5 {[%emt 0:07:15]} 26. Bb5 {[%emt 0:00:40]} Qf6 {[%emt 0:00:03]} 27. c4 {[%emt 0:10:26]} d4 {[%emt 0:01:33]} 28. Qd2 {[%emt 0:01:24]} e4 {[%emt 0:05:45]} 29. Re1 {[%emt 0:03:06]} Bg6 {[%emt 0:08:31]} 30. Ra6 {[%emt 0:01:16]} Qe5 {[%emt 0:05:34]} 31. f4 {[%emt 0:02:14]} Qh5 {[%emt 0:02:22]} 32. Qxd4 {[%emt 0:00:57]} Rbd8 {[%emt 0:00:04]} 33. Qf2 {[%emt 0:01:10]} Rd3 {[%emt 0:00:05]} 34. c5 {[%emt 0:06:39]} Rxb3 {[%emt 0:04:03]} 35. Bf1 {[%emt 0:00:19]} Rc3 {[%emt 0:00:54]} 36. c6 {[%emt 0:02:40]} Qd5 {[%emt 0:01:06]} 37. Rb6 {[%emt 0:04:16]} Rf3 {[%emt 0:04:55]} 38. Rb5 {[%emt 0:03:11]} Qxc6 {[%emt 0:00:25]} 39. Qc5 {[%emt 0:01:07]} Rxg3+ {[%emt 0:01:09]} 40. Kh2 {[%emt 0:00:08]} Qxc5 {[%emt 0:02:44]} 41. Rxc5 {[%emt 0:30:06]} Rf3 {[%emt 0:32:03]} 42. h5 {[%emt 0:03:57]} Bf5 {[%emt 0:02:15]} 43. Re5 {[%emt 0:00:00]} Rxf4 {[%emt 0:00:00]} 44. Be2 {[%emt 0:00:00]} g5 {[%emt 0:00:00]} 45. hxg6 {[%emt 0:00:00]} Bxg6 {[%emt 0:00:00]} 46. Kg3 {[%emt 0:00:00]} Kg7 {[%emt 0:00:00]} 47. Bh5 {[%emt 0:00:00]} R4f5 {[%emt 0:00:00]} 48. Re7+ {[%emt 0:00:00]} Kf6 {[%emt 0:00:00]} 49. Bxg6 {[%emt 0:00:00]} Rg5+ {[%emt 0:00:00]} 50. Kf4 {[%emt 0:00:00]} Kxg6+ {[%emt 0:00:55]} 51. Kxe4 {[%emt 0:00:00]} Rg4+ {[%emt 0:00:04]} 52. Ke3 {[%emt 0:00:00]} Rg3+ {[%emt 0:00:46]} 53. Ke4 {[%emt 0:00:00]} h5 {[%emt 0:00:24]} 54. Rh1 {[%emt 0:00:00]} Rg4+ {[%emt 0:00:21]} 55. Ke3 {[%emt 0:00:00]} Rf6 {[%emt 0:07:19]} 56. Re8 {[%emt 0:00:00]} h4 {[%emt 0:03:30]} 57. Rg8+ {[%emt 0:00:00]} Kh5 {[%emt 0:00:05]} 58. Rh8+ {[%emt 0:00:00]} Rh6 {[%emt 0:00:10]} 59. Rxh6+ {[%emt 0:00:00]} 1/2-1/2

[Event "Czech Open GM 2020"]
[Site "Pardubice"]
[Date "2020.09.26"]
[Round "6.3"]
[White "Jarmula, Lukasz"]
[Black "Stocek, Jiri"]
[Result "1-0"]
[ECO "E32"]
[WhiteElo "2444"]
[BlackElo "2595"]
[Annotator "ChessBase"]
[PlyCount "79"]
[EventDate "2020.09.21"]
[EventCountry "CZE"]
[SourceTitle "playchess.com"]
[Source "ChessBase"]
[SourceQuality "1"]
[TimeControl "40/5400+30:1800+30"]

1. d4 {[%emt 0:00:00]} Nf6 {[%emt 0:00:00]} 2. c4 {[%emt 0:00:00]} e6 {[%emt 0:00:09]} 3. Nc3 {[%emt 0:00:00]} Bb4 {[%emt 0:00:13]} 4. Qc2 {[%emt 0:00:00]} O-O {[%emt 0:05:07]} 5. e4 {[%emt 0:00:04]} d6 {[%emt 0:02:34]} 6. e5 {[%emt 0:00:13]} Nfd7 {[%emt 0:00:29]} 7. Nf3 {[%emt 0:00:57]} c5 {[%emt 0:02:13]} 8. exd6 {[%emt 0:00:20]} cxd4 {[%emt 0:02:15]} 9. Nxd4 {[%emt 0:00:24]} Nc6 {[%emt 0:02:04]} 10. Nxc6 {[%emt 0:02:21]} bxc6 {[%emt 0:00:18]} 11. Be3 {[%emt 0:00:12]} Bxd6 {[%emt 0:03:55]} 12. Rd1 {[%emt 0:01:08]} Qc7 {[%emt 0:12:41]} 13. g3 {[%emt 0:01:01]} Ne5 {[%emt 0:10:58]} 14. Be2 {[%emt 0:01:27]} f5 {[%emt 0:04:38]} 15. O-O {[%emt 0:05:32]} Nf7 {[%emt 0:01:10]} 16. f4 {[%emt 0:07:17]} Rb8 {[%emt 0:03:07]} 17. b3 {[%emt 0:04:45]} Re8 {[%emt 0:05:21]} 18. Bf3 {[%emt 0:08:05]} e5 {[%emt 0:02:45]} 19. Bg2 {[%emt 0:02:42]} exf4 {[%emt 0:02:38]} 20. Bxf4 {[%emt 0:00:33]} Bxf4 {[%emt 0:00:26]} 21. gxf4 {[%emt 0:02:44]} Be6 {[%emt 0:03:56]} 22. Qf2 {[%emt 0:04:55]} Rbd8 {[%emt 0:04:40]} 23. Qc5 {[%emt 0:01:54]} Rxd1 {[%emt 0:00:22]} 24. Nxd1 {[%emt 0:00:41]} Nd8 {[%emt 0:08:00]} 25. Nb2 {[%emt 0:07:28]} Re7 {[%emt 0:08:12]} 26. Nd3 {[%emt 0:10:33]} Rd7 {[%emt 0:00:26]} 27. Qe3 {[%emt 0:01:15]} Qd6 {[%emt 0:01:15]} 28. Ne5 {[%emt 0:01:02]} Rc7 {[%emt 0:03:40]} 29. c5 {[%emt 0:01:15]} Qe7 {[%emt 0:00:45]} 30. Rd1 {[%emt 0:03:17]} a5 {[%emt 0:06:27]} 31. Rd6 {[%emt 0:02:18]} Bf7 {[%emt 0:01:31]} 32. Qd2 {[%emt 0:03:38]} Rc8 {[%emt 0:00:26]} 33. Bxc6 {[%emt 0:10:53]} Nxc6 {[%emt 0:01:07]} 34. Nxc6 {[%emt 0:00:08]} Qf8 {[%emt 0:02:28]} 35. Rd8 {[%emt 0:02:06]} Rxd8 {[%emt 0:00:04]} 36. Qxd8 {[%emt 0:00:07]} Be8 {[%emt 0:00:07]} 37. Nd4 {[%emt 0:00:23]} Kf7 {[%emt 0:00:44]} 38. Qd5+ {[%emt 0:00:54]} Kg6 {[%emt 0:00:05]} 39. c6 {[%emt 0:01:00]} Qf6 {[%emt 0:01:32]} 40. c7 {[%emt 0:00:44]} 1-0

[Event "Czech Open GM 2020"]
[Site "Pardubice"]
[Date "2020.09.26"]
[Round "6.4"]
[White "Zwardon, Vojtech"]
[Black "Plat, Vojtech"]
[Result "1/2-1/2"]
[ECO "A22"]
[WhiteElo "2455"]
[BlackElo "2566"]
[Annotator "ChessBase"]
[PlyCount "159"]
[EventDate "2020.09.21"]
[EventCountry "CZE"]
[SourceTitle "playchess.com"]
[Source "ChessBase"]
[SourceQuality "1"]
[TimeControl "40/5400+30:1800+30"]

1. c4 {[%emt 0:00:00]} e5 {[%emt 0:00:00]} 2. g3 {[%emt 0:00:00]} Nf6 {[%emt 0:00:00]} 3. Bg2 {[%emt 0:00:00]} Be7 {[%emt 0:00:14]} 4. Nc3 {[%emt 0:00:00]} O-O {[%emt 0:00:13]} 5. Nf3 {[%emt 0:00:00]} d6 {[%emt 0:00:06]} 6. O-O {[%emt 0:00:00]} c6 {[%emt 0:00:12]} 7. Qc2 {[%emt 0:00:00]} a5 {[%emt 0:00:05]} 8. Rd1 {[%emt 0:00:33]} Nbd7 {[%emt 0:00:16]} 9. b3 {[%emt 0:00:33]} Re8 {[%emt 0:00:06]} 10. d4 {[%emt 0:00:03]} Qc7 {[%emt 0:01:07]} 11. Bb2 {[%emt 0:00:40]} Bf8 {[%emt 0:02:10]} 12. Na4 {[%emt 0:00:17]} b6 {[%emt 0:05:47]} 13. Rac1 {[%emt 0:06:38]} Bb7 {[%emt 0:01:27]} 14. c5 {[%emt 0:00:51]} bxc5 {[%emt 0:00:32]} 15. dxe5 {[%emt 0:00:07]} dxe5 {[%emt 0:00:03]} 16. Nd2 {[%emt 0:03:50]} Ba6 {[%emt 0:01:03]} 17. Ne4 {[%emt 0:00:05]} c4 {[%emt 0:03:24]} 18. bxc4 {[%emt 0:02:02]} Rab8 {[%emt 0:02:05]} 19. c5 {[%emt 0:05:44]} Nxe4 {[%emt 0:02:26]} 20. Qxe4 {[%emt 0:07:48]} Bb5 {[%emt 0:00:16]} 21. Ba3 {[%emt 0:08:40]} Nf6 {[%emt 0:02:30]} 22. Qc2 {[%emt 0:00:18]} e4 {[%emt 0:00:26]} 23. Nb6 {[%emt 0:04:22]} Re5 {[%emt 0:08:43]} 24. Rd4 {[%emt 0:06:05]} Qe7 {[%emt 0:01:42]} 25. Nc4 {[%emt 0:00:39]} Bxc4 {[%emt 0:01:42]} 26. Rxc4 {[%emt 0:02:53]} Rb5 {[%emt 0:01:22]} 27. Bb2 {[%emt 0:00:36]} Rexc5 {[%emt 0:00:39]} 28. Rxc5 {[%emt 0:01:31]} Rxc5 {[%emt 0:00:03]} 29. Qxc5 {[%emt 0:00:04]} Qxc5 {[%emt 0:00:01]} 30. Rxc5 {[%emt 0:00:08]} Bxc5 {[%emt 0:00:04]} 31. Bxf6 {[%emt 0:00:07]} gxf6 {[%emt 0:00:00]} 32. Bxe4 {[%emt 0:00:05]} Kg7 {[%emt 0:00:07]} 33. Bxc6 {[%emt 0:00:06]} h6 {[%emt 0:00:22]} 34. Bd7 {[%emt 0:01:38]} Bb4 {[%emt 0:00:06]} 35. Kg2 {[%emt 0:01:52]} Be1 {[%emt 0:00:14]} 36. Kf3 {[%emt 0:00:08]} Bb4 {[%emt 0:00:04]} 37. Ke4 {[%emt 0:00:15]} Be1 {[%emt 0:00:07]} 38. f3 {[%emt 0:00:06]} Bb4 {[%emt 0:00:04]} 39. Kd5 {[%emt 0:00:34]} Kf8 {[%emt 0:00:26]} 40. Ba4 {[%emt 0:00:12]} Be1 {[%emt 0:00:33]} 41. Ke4 {[%emt 0:30:08]} Bb4 {[%emt 0:30:11]} 42. Kf5 {[%emt 0:00:03]} Kg7 {[%emt 0:00:04]} 43. Bb3 {[%emt 0:00:02]} Be1 {[%emt 0:00:27]} 44. Kg4 {[%emt 0:00:12]} Bf2 {[%emt 0:00:24]} 45. f4 {[%emt 0:00:03]} Bg1 {[%emt 0:00:15]} 46. Kf3 {[%emt 0:00:07]} Bc5 {[%emt 0:00:04]} 47. Bc4 {[%emt 0:00:17]} Bb6 {[%emt 0:00:49]} 48. e4 {[%emt 0:01:37]} Bg1 {[%emt 0:00:12]} 49. Bb3 {[%emt 0:00:05]} Bc5 {[%emt 0:00:06]} 50. Kg4 {[%emt 0:00:36]} Bg1 {[%emt 0:00:15]} 51. h3 {[%emt 0:00:07]} Bd4 {[%emt 0:00:40]} 52. Kf5 {[%emt 0:01:00]} Bc3 {[%emt 0:00:09]} 53. g4 {[%emt 0:00:19]} Bd2 {[%emt 0:00:13]} 54. h4 {[%emt 0:00:06]} Be1 {[%emt 0:00:24]} 55. g5 {[%emt 0:00:17]} fxg5 {[%emt 0:00:30]} 56. hxg5 {[%emt 0:00:30]} hxg5 {[%emt 0:00:30]} 57. fxg5 {[%emt 0:00:30]} Bb4 {[%emt 0:00:55]} 58. Bd1 {[%emt 0:00:00]} Be7 {[%emt 0:00:07]} 59. Bh5 {[%emt 0:00:00]} Bb4 {[%emt 0:00:23]} 60. e5 {[%emt 0:00:35]} Bc3 {[%emt 0:00:26]} 61. Ke4 {[%emt 0:01:00]} Bd2 {[%emt 0:00:16]} 62. Kf5 {[%emt 0:00:29]} Bc3 {[%emt 0:00:04]} 63. Bd1 {[%emt 0:00:23]} Bd2 {[%emt 0:00:05]} 64. Bc2 {[%emt 0:00:03]} Bc3 {[%emt 0:00:10]} 65. a4 {[%emt 0:00:46]} Bd2 {[%emt 0:00:05]} 66. Bb3 {[%emt 0:00:33]} Bc3 {[%emt 0:00:04]} 67. Bd1 {[%emt 0:00:33]} Bd2 {[%emt 0:00:11]} 68. Bh5 {[%emt 0:00:03]} Bc3 {[%emt 0:00:03]} 69. g6 {[%emt 0:00:03]} fxg6+ {[%emt 0:00:03]} 70. Bxg6 {[%emt 0:00:06]} Bxe5 {[%emt 0:00:26]} 71. Kxe5 {[%emt 0:00:03]} Kxg6 {[%emt 0:00:04]} 72. Kd6 {[%emt 0:00:02]} Kf6 {[%emt 0:00:08]} 73. Kc7 {[%emt 0:00:03]} Ke7 {[%emt 0:00:12]} 74. Kb6 {[%emt 0:00:02]} Kd8 {[%emt 0:00:02]} 75. Kxa5 {[%emt 0:00:06]} Kc7 {[%emt 0:00:02]} 76. Ka6 {[%emt 0:00:04]} Kb8 {[%emt 0:00:02]} 77. a5 {[%emt 0:00:05]} Ka8 {[%emt 0:00:02]} 78. Kb6 {[%emt 0:00:02]} Kb8 {[%emt 0:00:01]} 79. a6 {[%emt 0:00:03]} Ka8 {[%emt 0:00:02]} 80. a7 {[%emt 0:00:02]} 1/2-1/2